bitfinex/quotes_SOLUSD_20251201
["timestamp","ask_amount","ask_price","bid_price","bid_amount"]
[1764574889306,8.80994492,127.17,127.15,0.69]
[1764574889476,12.28994492,127.17,127.15,0.69]
[1764574889889,12.28994492,127.17,127.16,7.86410821]
[1764574890278,12.28994492,127.17,127.16,8.55410821]
[1764574890884,12.28994492,127.17,127.16,11.41177421]
[1764574891580,8.80994492,127.19,127.16,31.07204473]
[1764574891771,8.80994492,127.19,127.18,7.86287152]
[1764574892178,8.80994492,127.19,127.18,8.55287152]
[1764574893695,8.80994492,127.19,127.17,8.55318926]
[1764574893998,8.80994492,127.19,127.16,7.86410821]
[1764574893999,12.31761092,127.19,127.16,7.86410821]
[1764574894977,12.31761092,127.19,127.16,8.55410821]
[1764574895178,12.31761092,127.19,127.16,28.21437873]
[1764574895480,73.91761092,127.19,127.16,28.21437873]
[1764574895679,73.26761092,127.19,127.16,28.21437873]
[1764574895876,0.65,127.18,127.15,7.86459229]
[1764574896086,3.48,127.17,127.16,0.69]
[1764574896289,12.28994492,127.18,127.16,3.547666]
[1764574896477,61.6,127.19,127.17,3.547666]
[1764574896883,61.6,127.24,127.18,3.547666]
[1764574897101,3.507666,127.25,127.21,2.857666]
[1764574897298,3.48,127.24,127.21,2.857666]
[1764574897488,8.80994492,127.23,127.2,3.547666]
[1764574897692,8.80994492,127.23,127.2,2.857666]
[1764574897880,8.80994492,127.23,127.21,0.69]
[1764574898080,8.80994492,127.23,127.22,7.8603993]
[1764574899483,8.80994492,127.23,127.22,8.5503993]
[1764574899890,8.80994492,127.23,127.22,7.8603993]
[1764574900498,8.80994492,127.23,127.22,8.5503993]
[1764574901294,8.80994492,127.23,127.22,7.8603993]
[1764574902323,8.80994492,127.23,127.22,8.5503993]
[1764574902519,8.80994492,127.23,127.22,11.4080653]
[1764574904525,8.80994492,127.23,127.22,8.5503993]
[1764574904702,8.80994492,127.23,127.18,7.86287152]
[1764574904905,8.80994492,127.23,127.21,2.857666]
[1764574905421,8.80994492,127.23,127.22,0.69]
[1764574905909,8.80994492,127.23,127.22,11.4080653]
[1764574906628,65.08,127.24,127.22,31.05906357]
[1764574906826,73.88994492,127.24,127.23,0.69]
[1764574907122,61.6,127.24,127.23,3.547666]
[1764574908201,61.6,127.24,127.23,11.40744749]
[1764574908402,70.40994492,127.24,127.23,7.85978149]
[1764574908722,70.40994492,127.24,127.23,11.40744749]
[1764574909102,3.48,127.26,127.23,47.36576523]
[1764574909303,3.48,127.26,127.24,3.547666]
[1764574909816,3.48,127.26,127.25,0.69]
[1764574910528,3.48,127.26,127.25,8.54854616]
[1764574911410,11.76761092,127.28,127.25,28.19491158]
[1764574911615,12.38994492,127.28,127.26,0.69]
[1764574912300,12.38994492,127.28,127.25,28.19491158]
[1764574912506,15.24761092,127.28,127.25,28.19491158]
[1764574912703,8.80994492,127.26,127.25,27.50491158]
[1764574913611,7.087666,127.28,127.25,27.50491158]
[1764574914433,2.857666,127.27,127.25,27.50491158]
[1764574914615,8.80994492,127.26,127.25,27.50491158]
[1764574915231,3.507666,127.26,127.24,7.85916378]
[1764574915428,6.337666,127.25,127.24,7.85916378]
[1764574915727,68.587666,127.25,127.24,7.85916378]
[1764574916452,8.80994492,127.24,127.2,20.33401222]
[1764574916609,11.66761092,127.22,127.21,7.86101721]
[1764574916814,15.14761092,127.22,127.21,7.86101721]
[1764574918529,12.28994492,127.22,127.21,7.86101721]
[1764574919914,15.14761092,127.22,127.21,7.86101721]
[1764574920533,16.74644711,127.22,127.21,7.86101721]
[1764574920735,3.48,127.22,127.21,7.86101721]
[1764574920917,8.80994492,127.25,127.21,8.54101721]
[1764574921238,7.93650219,127.24,127.22,0.68]
[1764574921540,3.48,127.24,127.22,0.68]
[1764574921836,7.93650219,127.24,127.23,7.85978149]
[1764574922543,4.45650219,127.24,127.23,7.85978149]
[1764574922844,7.93650219,127.24,127.23,7.85978149]
[1764574923631,13.26644711,127.25,127.21,31.97006243]
[1764574923828,16.74644711,127.25,127.23,0.68]
[1764574924217,16.74644711,127.25,127.22,0.68]
[1764574924612,4.45650219,127.24,127.22,0.68]
[1764574925553,16.74644711,127.25,127.22,0.68]
[1764574925753,4.45650219,127.24,127.22,8.53993984]
[1764574926046,17.44644711,127.25,127.22,8.53993984]
[1764574928332,16.74644711,127.25,127.22,8.53993984]
[1764574928648,8.80994492,127.23,127.2,4.45650219]
[1764574928825,8.80994492,127.23,127.22,0.68]
[1764574930448,61.6,127.24,127.22,0.68]
[1764574930621,70.40994492,127.24,127.23,7.85978149]
[1764574930945,61.6,127.24,127.23,12.31628368]
[1764574931240,61.6,127.24,127.23,12.99628368]
[1764574931449,61.6,127.24,127.23,8.53978149]
[1764574931823,61.6,127.24,127.23,12.99628368]
[1764574932139,73.88994492,127.26,127.23,28.18923523]
[1764574932320,73.88994492,127.26,127.24,0.68]
[1764574932520,73.88994492,127.26,127.25,7.85854616]
[1764574939456,70.40994492,127.26,127.25,0.68]
[1764574939757,70.40994492,127.26,127.25,5.13650219]
[1764574939758,8.80994492,127.26,127.25,5.13650219]
[1764574940256,8.80994492,127.26,127.25,0.68]
[1764574940460,3.46,127.27,127.25,5.13650219]
[1764574940844,12.36994492,127.28,127.26,5.13650219]
[1764574941029,0.1,127.28,127.27,4.45650219]
[1764574941230,8.90994492,127.28,127.27,0.68]
[1764574941460,8.90994492,127.28,127.27,8.53731122]
[1764574941759,8.90994492,127.28,127.27,7.85731122]
[1764574942051,9.60994492,127.28,127.27,7.85731122]
[1764574942436,13.36644711,127.28,127.27,7.85731122]
[1764574942738,30.37531111,127.28,127.26,7.85760975]
[1764574942931,7.93650219,127.27,127.26,7.85760975]
[1764574943330,3.48,127.27,127.26,7.85760975]
[1764574944437,8.63650219,127.27,127.26,7.85760975]
[1764574944639,7.93650219,127.27,127.26,7.85760975]
[1764574945055,8.80994492,127.26,127.25,7.85854616]
[1764574948349,8.80994492,127.26,127.25,8.56854616]
[1764574950851,61.6,127.27,127.25,32.67141377]
[1764574951057,61.6,127.27,127.26,0.71]
[1764574951848,8.90994492,127.28,127.26,0.71]
[1764574952044,13.36644711,127.28,127.26,0.71]
[1764574952246,8.80994492,127.26,127.25,7.85854616]
[1764574952649,13.26644711,127.26,127.24,8.5689777]
[1764574954166,13.26644711,127.26,127.24,8.5689777]
[1764574954338,4.45650219,127.25,127.24,7.8589777]
[1764574954541,7.93650219,127.25,127.23,7.85955604]
[1764574954759,7.93650219,127.25,127.23,8.56955604]
[1764574955643,7.93650219,127.25,127.24,0.71]
[1764574955960,3.48,127.25,127.24,0.71]
[1764574956654,12.28994492,127.25,127.24,8.56916378]
[1764574957041,0.1,127.28,127.24,28.21707324]
[1764574957240,3.46,127.27,127.25,0.71]
[1764574957853,8.80994492,127.26,127.25,0.71]
[1764574959158,8.80994492,127.26,127.25,8.56854616]
[1764574959347,65.08,127.27,127.25,8.56854616]
[1764574959547,65.08,127.27,127.25,7.85854616]
[1764574959748,70.24650219,127.27,127.25,7.85854616]
[1764574960161,69.53650219,127.27,127.25,7.85854616]
[1764574960357,69.53650219,127.27,127.25,8.56854616]
[1764574961874,73.88994492,127.27,127.26,0.71]
[1764574962063,73.88994492,127.27,127.25,7.85854616]
[1764574962266,73.88994492,127.27,127.26,0.71]
[1764574963853,73.88994492,127.27,127.26,8.56792865]
[1764574965861,73.88994492,127.27,127.25,0.71]
[1764574966571,12.28994492,127.27,127.25,0.71]
[1764574968374,12.28994492,127.27,127.26,7.85792865]
[1764574968759,12.28994492,127.27,127.26,8.56792865]
[1764574968960,12.28994492,127.27,127.26,7.85792865]
[1764574969285,16.74644711,127.27,127.26,7.85792865]
[1764574971480,8.80994492,127.27,127.26,7.85792865]
[1764574971777,12.26994492,127.27,127.26,7.85792865]
[1764574973382,16.72644711,127.27,127.26,7.85792865]
[1764574976284,12.26994492,127.27,127.26,7.85792865]
[1764574977763,12.26994492,127.27,127.24,27.50707324]
[1764574977971,12.26994492,127.27,127.26,0.65]
[1764574978489,8.80994492,127.27,127.26,0.65]
[1764574978786,12.26994492,127.27,127.26,0.65]
[1764574979186,12.26994492,127.27,127.24,27.50707324]
[1764574979394,12.26994492,127.27,127.25,0.65]
[1764574979980,12.26994492,127.27,127.26,7.85792865]
[1764574980698,12.26994492,127.27,127.26,8.50792865]
[1764574982365,0.1,127.28,127.26,28.15275027]
[1764574982590,0.1,127.28,127.27,6.95972175]
[1764574983584,0.1,127.28,127.27,14.81703297]
[1764574984499,1e-08,127.29,127.28,0.65]
[1764574984794,1e-08,127.3,127.29,16.308864]
[1764574984980,1e-08,127.3,127.29,22.61858575]
[1764574985176,1e-08,127.3,127.29,23.26858575]
[1764574985590,1e-08,127.3,127.29,27.66466242]
[1764574988401,1e-08,127.3,127.29,31.12466242]
[1764574990891,1e-08,127.3,127.29,11.96607667]
[1764574991088,1e-08,127.3,127.29,11.35579842]
[1764574992907,1e-08,127.3,127.29,8.50607667]
[1764574993110,9.49994493,127.3,127.29,7.85607667]
[1764574993314,8.80994492,127.29,127.28,7.8565182]
[1764574993612,12.34966667,127.29,127.28,7.8565182]
[1764574994008,12.34966667,127.29,127.26,7.85777454]
[1764574994215,8.80994492,127.27,127.26,7.85777454]
[1764575000501,11.65966667,127.27,127.26,7.85777454]
[1764575001017,8.80994492,127.27,127.26,8.50777454]
[1764575001403,8.80994492,127.27,127.26,7.85777454]
[1764575002321,61.6,127.28,127.26,28.15259616]
[1764575002621,61.6,127.28,127.27,0.65]
[1764575004623,61.6,127.28,127.27,8.50731122]
[1764575004823,61.6,127.28,127.27,7.85731122]
[1764575005215,61.6,127.28,127.27,8.50731122]
[1764575005416,8.80994492,127.29,127.27,28.15058929]
[1764575006409,12.34966667,127.29,127.27,27.50058929]
[1764575007018,11.65966667,127.29,127.27,27.50058929]
[1764575007326,11.65966667,127.29,127.27,28.20058929]
[1764575007519,8.80994492,127.29,127.27,28.20058929]
[1764575010323,9.51994492,127.29,127.27,27.50058929]
[1764575010709,8.80994492,127.29,127.27,28.18058929]
[1764575011815,0.71,127.29,127.27,7.85731122]
[1764575012135,9.51994492,127.28,127.27,7.85731122]
[1764575012438,8.80994492,127.28,127.26,27.50275027]
[1764575012732,8.80994492,127.28,127.26,28.18275027]
[1764575014634,8.80994492,127.28,127.26,27.50275027]
[1764575015338,8.80994492,127.27,127.26,27.50275027]
[1764575016516,8.80994492,127.27,127.26,28.18275027]
[1764575017828,8.80994492,127.27,127.26,27.50275027]
[1764575020227,77.42966667,127.27,127.26,27.50275027]
[1764575021242,77.42966667,127.27,127.24,27.50707324]
[1764575021451,77.42966667,127.27,127.24,28.18707324]
[1764575024640,74.57994492,127.27,127.24,28.18707324]
[1764575024815,77.42966667,127.27,127.24,28.18707324]
[1764575025746,74.57994492,127.27,127.24,28.18707324]
[1764575026146,73.86994492,127.27,127.25,0.68]
[1764575027157,73.86994492,127.27,127.26,7.85792865]
[1764575027951,77.42966667,127.27,127.26,7.85792865]
[1764575028952,77.42966667,127.27,127.25,27.50491158]
[1764575032081,9.51994492,127.26,127.25,27.50491158]
[1764575032255,9.51994492,127.26,127.25,7.85854616]
[1764575032434,12.36966667,127.26,127.25,7.85854616]
[1764575033041,11.65966667,127.26,127.25,7.85854616]
[1764575034363,8.80994492,127.25,127.24,7.85916378]
[1764575034565,8.80994492,127.25,127.24,8.53916378]
[1764575036035,8.80994492,127.25,127.24,7.85916378]
[1764575036352,8.80994492,127.25,127.24,8.57916378]
[1764575040239,61.6,127.26,127.24,28.22707324]
[1764575040560,70.40994492,127.26,127.25,0.72]
[1764575041442,70.40994492,127.26,127.25,8.57854616]
[1764575041960,73.95966667,127.26,127.25,7.85854616]
[1764575042262,73.25966667,127.26,127.25,7.85854616]
[1764575042463,74.86432284,127.26,127.25,7.85854616]
[1764575042661,75.56432284,127.26,127.25,7.85854616]
[1764575043159,8.80994492,127.25,127.24,27.50707324]
[1764575043360,8.80994492,127.25,127.24,28.22707324]
[1764575043550,12.26994492,127.25,127.24,28.22707324]
[1764575044363,65.06,127.26,127.24,28.22707324]
[1764575044571,73.86994492,127.26,127.25,0.72]
[1764575045348,61.6,127.26,127.25,0.72]
[1764575046259,61.6,127.26,127.25,8.57854616]
[1764575049851,3.46,127.27,127.25,28.22491158]
[1764575050047,12.26994492,127.27,127.25,28.22491158]
[1764575050367,75.56432284,127.26,127.23,7.85937418]
[1764575050539,8.80994492,127.24,127.23,7.85937418]
[1764575050745,8.80994492,127.24,127.23,8.57937418]
[1764575051780,8.80994492,127.24,127.23,7.85937418]
[1764575052076,8.80994492,127.24,127.22,19.65060938]
[1764575052077,8.80994492,127.24,127.22,20.37060938]
[1764575052772,65.06,127.25,127.23,0.72]
[1764575053980,73.86994492,127.25,127.24,7.85916378]
[1764575056377,78.32432284,127.25,127.24,7.85916378]
[1764575056760,73.86994492,127.25,127.24,7.85916378]
[1764575056960,61.6,127.25,127.24,0.72]
[1764575057765,61.6,127.25,127.24,5.17437792]
[1764575058985,61.6,127.25,127.24,13.0335417]
[1764575061483,61.6,127.25,127.24,8.57916378]
[1764575061671,3.46,127.28,127.24,32.68145116]
[1764575061976,8.80994492,127.27,127.24,27.50707324]
[1764575062173,3.46,127.26,127.24,27.50707324]
[1764575062377,4.16,127.26,127.24,27.50707324]
[1764575062883,3.46,127.26,127.24,27.50707324]
[1764575063178,66.75437792,127.29,127.25,0.72]
[1764575063386,12.26994492,127.28,127.25,5.17437792]
[1764575063899,12.26994492,127.28,127.26,0.72]
[1764575066094,12.26994492,127.28,127.27,7.85731122]
[1764575067588,8.80994492,127.28,127.27,7.85731122]
[1764575068381,9.48994492,127.28,127.27,7.85731122]
[1764575068762,9.48994492,127.28,127.26,27.50275027]
[1764575068983,13.94432284,127.28,127.26,27.50275027]
[1764575069285,8.59437792,127.27,127.26,27.50275027]
[1764575069785,8.59437792,127.27,127.26,7.85792865]
[1764575070270,3.46,127.27,127.26,7.85792865]
[1764575070476,75.54432284,127.28,127.26,7.85792865]
[1764575070670,3.46,127.27,127.26,7.85792865]
[1764575070873,8.62437792,127.27,127.25,27.50491158]
[1764575071206,3.46,127.27,127.25,28.15491158]
[1764575071485,75.57432284,127.28,127.25,28.15491158]
[1764575071688,3.46,127.27,127.25,28.15491158]
[1764575072086,71.11994492,127.28,127.25,28.15491158]
[1764575072390,3.46,127.27,127.25,28.15491158]
[1764575073388,3.46,127.27,127.25,27.50491158]
[1764575073599,3.46,127.27,127.25,28.15491158]
[1764575074471,12.26994492,127.27,127.26,0.65]
[1764575074686,61.6,127.28,127.26,0.65]
[1764575074892,65.06,127.28,127.26,0.65]
[1764575075287,65.06,127.28,127.26,5.10437792]
[1764575075488,73.86994492,127.28,127.27,7.85731122]
[1764575076992,73.86994492,127.28,127.27,8.50731122]
[1764575077197,61.60000001,127.3,127.27,32.60496721]
[1764575077401,61.60000001,127.3,127.28,0.65]
[1764575077575,1e-08,127.3,127.28,5.10437792]
[1764575078071,1e-08,127.3,127.29,0.65]
[1764575079182,1e-08,127.3,127.29,8.50607667]
[1764575082498,0.71000001,127.3,127.29,7.85607667]
[1764575082681,1e-08,127.3,127.28,27.49842865]
[1764575082881,1e-08,127.3,127.28,28.14842865]
[1764575083405,1e-08,127.3,127.29,0.65]
[1764575083808,1e-08,127.3,127.29,8.50607667]
[1764575085505,1e-08,127.3,127.28,28.14842865]
[1764575085891,1e-08,127.3,127.28,27.49842865]
[1764575086093,1e-08,127.3,127.29,0.65]
[1764575086306,1e-08,127.3,127.29,8.50607667]
[1764575087182,1e-08,127.3,127.29,7.85607667]
[1764575087482,1e-08,127.3,127.29,0.65]
[1764575088421,1e-08,127.3,127.29,8.50607667]
[1764575091811,1e-08,127.3,127.29,12.96045459]
[1764575093010,1e-08,127.3,127.29,8.50607667]
[1764575097696,1e-08,127.3,127.29,7.85607667]
[1764575099718,9.50994493,127.3,127.29,7.85607667]
[1764575100621,8.80994493,127.3,127.29,7.85607667]
[1764575101319,8.80994493,127.3,127.28,27.49842865]
[1764575101492,8.80994492,127.29,127.28,27.49842865]
[1764575101692,12.96994492,127.29,127.28,27.49842865]
[1764575101910,17.42432284,127.29,127.28,27.49842865]
[1764575102112,12.96994492,127.29,127.28,27.49842865]
[1764575102299,12.26994492,127.29,127.28,27.49842865]
[1764575102992,12.26994492,127.29,127.28,19.64173475]
[1764575104627,12.96994492,127.29,127.28,19.64173475]
[1764575105721,12.26994492,127.29,127.28,19.64173475]
[1764575106318,61.60000001,127.3,127.28,23.16042121]
[1764575106510,3.46000001,127.3,127.28,23.16042121]
[1764575106714,3.46000001,127.3,127.28,31.01711511]
[1764575107234,12.26994493,127.3,127.29,0.67]
[1764575107923,12.26994493,127.3,127.29,8.52607667]
[1764575108326,12.26994493,127.3,127.29,7.85607667]
[1764575108853,12.26994493,127.3,127.29,8.52607667]
[1764575110427,8.80994493,127.3,127.29,8.52607667]
[1764575111315,8.80994493,127.3,127.29,7.85607667]
[1764575115734,12.35863139,127.3,127.29,7.85607667]
[1764575115909,12.35863139,127.3,127.26,28.17187236]
[1764575115910,8.80994492,127.29,127.26,28.17187236]
[1764575116111,12.26994492,127.29,127.26,31.02055882]
[1764575116330,12.26994492,127.29,127.27,0.67]
[1764575116912,12.26994492,127.29,127.28,7.8566939]
[1764575117245,8.80994493,127.3,127.28,30.34711511]
[1764575117408,8.80994493,127.3,127.28,31.01711511]
[1764575117608,8.80994493,127.3,127.28,28.16842865]
[1764575118936,8.80994493,127.3,127.29,8.52607667]
[1764575119130,1e-08,127.3,127.29,8.52607667]
[1764575119669,1e-08,127.3,127.29,7.85607667]
[1764575119943,8.80994492,127.29,127.28,7.85639644]
[1764575120613,0.70000001,127.3,127.28,28.16813119]
[1764575120614,3.46000001,127.3,127.28,28.16813119]
[1764575122332,1e-08,127.3,127.29,0.67]
[1764575123151,1e-08,127.3,127.29,3.51868646]
[1764575123312,1e-08,127.3,127.29,11.37476313]
[1764575125629,1e-08,127.3,127.29,8.52607667]
[1764575125945,1e-08,127.3,127.29,11.37476313]
[1764575131332,1e-08,127.3,127.29,13.37476312]
[1764575131643,1e-08,127.3,127.29,31.14362713]
[1764575132744,1e-08,127.3,127.29,8.52607667]
[1764575133055,12.36863139,127.3,127.29,7.85607667]
[1764575133252,1e-08,127.3,127.29,7.85607667]
[1764575133866,1e-08,127.3,127.29,8.56607667]
[1764575138762,1e-08,127.3,127.29,7.85607667]
[1764575139242,1e-08,127.3,127.29,0.71]
[1764575139436,1e-08,127.3,127.28,28.20842865]
[1764575139636,1e-08,127.3,127.27,7.85731122]
[1764575139637,0.71,127.29,127.27,7.85731122]
[1764575139936,3.55868646,127.29,127.27,7.85731122]
[1764575141265,3.55868646,127.29,127.26,27.50208339]
[1764575141860,0.71,127.29,127.26,27.50208339]
[1764575142167,11.65863138,127.29,127.26,27.50208339]
[1764575142478,3.55868646,127.28,127.26,27.50208339]
[1764575143052,0.71,127.27,127.26,27.50208339]
[1764575143261,3.55868646,127.28,127.26,19.64415474]
[1764575143456,0.71,127.28,127.26,19.64415474]
[1764575144465,12.36863138,127.29,127.26,19.64415474]
[1764575144844,11.65863138,127.29,127.26,19.64415474]
[1764575145048,0.71,127.28,127.26,19.64415474]
[1764575145247,0.71,127.28,127.26,27.50208339]
[1764575145656,15.82863138,127.29,127.26,27.50208339]
[1764575146051,15.82863138,127.29,127.26,28.21208339]
[1764575146373,15.11863138,127.29,127.26,28.21208339]
[1764575146750,22.97473559,127.29,127.26,7.85792865]
[1764575146952,15.11863138,127.29,127.26,7.85792865]
[1764575147260,15.82863138,127.29,127.26,7.85792865]
[1764575147570,12.97994492,127.29,127.26,8.56792865]
[1764575150371,15.82863138,127.29,127.26,7.85792865]
[1764575150557,15.11863138,127.29,127.26,7.85792865]
[1764575150763,0.71,127.28,127.26,7.85792865]
[1764575151166,8.80994492,127.27,127.26,7.85792865]
[1764575151473,11.65863138,127.27,127.26,7.85792865]
[1764575151777,12.36863138,127.27,127.26,7.85792865]
[1764575152455,12.36863138,127.27,127.25,27.50395283]
[1764575152884,8.80994492,127.27,127.25,27.50395283]
[1764575153057,8.80994492,127.27,127.26,0.71]
[1764575153778,61.6,127.29,127.26,0.71]
[1764575154073,8.80994492,127.28,127.26,0.71]
[1764575154282,8.80994492,127.28,127.25,28.21395283]
[1764575154773,61.6,127.29,127.26,0.71]
[1764575154972,1e-08,127.3,127.27,2.84868646]
[1764575155479,1e-08,127.3,127.28,0.71]
[1764575155974,1e-08,127.3,127.29,7.85607667]
[1764575156571,0.68,127.38,127.32,16.308864]
[1764575156773,0.68,127.38,127.32,19.768864]
[1764575156965,0.68,127.38,127.33,0.69]
[1764575157174,0.68,127.38,127.35,2.84868646]
[1764575157557,0.68,127.38,127.35,0.69]
[1764575157878,3.52868646,127.38,127.34,16.308864]
[1764575158075,3.52868646,127.38,127.35,7.85237534]
[1764575158255,0.68,127.37,127.35,7.85237534]
[1764575158878,15.11863138,127.36,127.32,7.85422557]
[1764575159070,2.84868646,127.35,127.32,7.85422557]
[1764575159377,12.94994492,127.36,127.32,28.1797895]
[1764575159579,2.84868646,127.34,127.32,7.85422557]
[1764575159985,3.52868646,127.34,127.32,7.85422557]
[1764575160187,0.68,127.34,127.31,7.85484251]
[1764575160478,8.80994492,127.34,127.31,8.54484251]
[1764575160681,8.80994492,127.34,127.31,28.18194878]
[1764575160977,9.48994492,127.34,127.31,28.18194878]
[1764575161378,3.46,127.36,127.31,27.49194878]
[1764575161379,3.52868646,127.33,127.31,27.49194878]
[1764575161570,3.52868646,127.33,127.31,19.63710627]
[1764575161571,0.68,127.33,127.31,19.63710627]
[1764575161968,3.52868646,127.33,127.31,19.63710627]
[1764575162166,0.68,127.33,127.31,19.63710627]
[1764575162368,12.33863138,127.32,127.3,27.4941084]
[1764575163466,3.52868646,127.31,127.3,27.4941084]
[1764575163679,3.52868646,127.31,127.27,0.69]
[1764575163680,3.52868646,127.31,127.28,27.49842865]
[1764575164191,3.52868646,127.31,127.28,28.18842865]
[1764575164370,4.45030093,127.31,127.28,27.49842865]
[1764575164575,0.68,127.3,127.28,27.49842865]
[1764575164777,5.13030093,127.3,127.28,27.49842865]
[1764575164989,4.45030093,127.31,127.28,28.18842865]
[1764575165279,5.13030093,127.31,127.28,28.18842865]
[1764575165685,5.13030093,127.31,127.28,27.49842865]
[1764575166491,17.40024585,127.3,127.28,27.49842865]
[1764575166797,4.45030093,127.29,127.28,27.49842865]
[1764575167004,3.46,127.3,127.28,28.18842865]
[1764575167165,8.59030093,127.3,127.28,27.49842865]
[1764575167679,7.91030093,127.3,127.27,0.69]
[1764575168066,8.59030093,127.3,127.27,0.69]
[1764575168467,8.59030093,127.3,127.28,7.8566939]
[1764575168996,17.40024585,127.3,127.28,7.8566939]
[1764575169167,16.72024585,127.3,127.28,7.8566939]
[1764575169365,3.46,127.3,127.28,28.18842865]
[1764575169581,3.46,127.3,127.28,27.49842865]
[1764575169978,0.68,127.31,127.3,6.21023094]
[1764575170181,8.59030093,127.31,127.3,6.21023094]
[1764575170388,5.13030093,127.31,127.3,6.21023094]
[1764575170573,8.59030093,127.31,127.3,14.06569048]
[1764575170775,12.94994492,127.31,127.3,14.06569048]
[1764575170993,4.14,127.32,127.3,14.06569048]
[1764575171208,8.59030093,127.32,127.3,14.06569048]
[1764575171489,8.80994492,127.34,127.31,0.69]
[1764575171708,12.26994492,127.34,127.31,0.69]
[1764575171877,0.68,127.35,127.31,0.69]
[1764575172065,8.59030093,127.35,127.31,0.69]
[1764575172578,8.59030093,127.35,127.32,7.85422557]
[1764575172772,4.14,127.35,127.32,7.85422557]
[1764575172987,5.13030093,127.34,127.32,7.85422557]
[1764575173169,4.45030093,127.34,127.32,7.85422557]
[1764575173365,4.14,127.35,127.32,7.85422557]
[1764575173586,4.45030093,127.34,127.32,7.85422557]
[1764575173896,4.45030093,127.33,127.32,7.85422557]
[1764575174282,4.45030093,127.33,127.31,7.85454398]
[1764575174594,13.26024585,127.33,127.31,7.85454398]
[1764575174890,13.26024585,127.33,127.3,6.90023094]
[1764575174891,13.94024585,127.32,127.3,14.06553505]
[1764575175272,17.40024585,127.32,127.3,14.06553505]
[1764575175786,16.72024585,127.32,127.3,14.06553505]
[1764575175988,4.45030093,127.33,127.3,34.39418391]
[1764575176195,7.91030093,127.33,127.3,34.39418391]
[1764575176493,3.46,127.34,127.31,0.69]
[1764575176693,13.94024585,127.33,127.3,14.06553505]
[1764575176904,13.26024585,127.33,127.3,14.75553505]
[1764575177073,7.91030093,127.34,127.31,0.69]
[1764575177275,3.46,127.34,127.31,0.69]
[1764575177474,13.26024585,127.35,127.31,0.69]
[1764575177676,16.72024585,127.35,127.31,0.69]
[1764575177894,17.40024585,127.35,127.31,0.69]
[1764575178395,7.91030093,127.37,127.33,4.45030093]
[1764575178701,4.55030093,127.39,127.35,4.45030093]
[1764575178874,8.90994492,127.39,127.36,28.17115577]
[1764575179076,0.1,127.39,127.36,28.17115577]
[1764575179893,0.1,127.39,127.38,4.45030093]
[1764575180100,0.1,127.39,127.37,0.69]
[1764575180286,0.1,127.39,127.37,5.14030093]
[1764575180686,0.1,127.39,127.38,0.69]
[1764575180998,0.1,127.39,127.38,7.85052598]
[1764575181292,0.1,127.39,127.38,8.54052598]
[1764575183077,0.1,127.39,127.38,12.99082691]
[1764575185402,0.1,127.39,127.38,8.54052598]
[1764575185604,0.1,127.39,127.38,12.99082691]
[1764575186283,0.1,127.39,127.38,8.54052598]
[1764575186479,0.1,127.39,127.37,27.47899819]
[1764575186695,0.1,127.39,127.37,32.59929912]
[1764575186893,0.1,127.39,127.37,28.14899819]
[1764575187201,0.1,127.39,127.37,32.59929912]
[1764575187402,0.1,127.39,127.37,28.14899819]
[1764575187574,0.1,127.39,127.37,32.59929912]
[1764575187908,0.1,127.39,127.37,28.14899819]
[1764575188396,0.1,127.39,127.37,32.59929912]
[1764575189206,0.1,127.39,127.38,0.67]
[1764575189402,0.1,127.39,127.38,5.12030093]
[1764575189792,0.1,127.39,127.38,12.97082691]
[1764575190892,0.1,127.39,127.38,8.52052598]
[1764575191088,0.1,127.39,127.38,12.97082691]
[1764575193610,0.1,127.39,127.38,8.52052598]
[1764575193910,0.1,127.39,127.38,12.97082691]
[1764575195202,1e-08,127.39,127.38,8.52052598]
[1764575195408,1e-08,127.39,127.38,12.97082691]
[1764575199089,1e-08,127.39,127.38,7.85052598]
[1764575199290,1e-08,127.39,127.37,31.92929912]
[1764575199522,1e-08,127.39,127.37,28.14899819]
[1764575201627,1e-08,127.39,127.37,32.59929912]
[1764575201829,9.48994492,127.38,127.37,7.85114234]
[1764575202126,62.28000001,127.39,127.37,7.85114234]
[1764575202320,0.68000001,127.39,127.37,7.85114234]
[1764575203409,0.68000001,127.39,127.37,27.47899819]
[1764575205724,1e-08,127.39,127.37,27.47899819]
[1764575205928,1e-08,127.39,127.37,28.14899819]
[1764575206231,10.29915275,127.4,127.37,28.14899819]